[Event "Late-Titled-Tuesday-Blitz-July-09-2024"]
[Site "Chess.com"]
[Date "2024.07.09"]
[Round "4"]
[White "BardArtem"]
[Black "JoJoZP"]
[Result "0-1"]
[WhiteElo "2796"]
[BlackElo "2531"]
[TimeControl "180+1"]
[EndTime "14:40:08 PDT"]
[Termination "JoJoZP won by checkmate"]

1. e4 {[%clk 0:02:40]} 1... c5 {[%clk 0:02:59.7]} 2. Nf3 {[%clk 0:02:39.7]} 2...
d6 {[%clk 0:03:00.2]} 3. d4 {[%clk 0:02:40]} 3... cxd4 {[%clk 0:03:01.1]} 4.
Qxd4 {[%clk 0:02:40.9]} 4... Nc6 {[%clk 0:02:58.8]} 5. Qd3 {[%clk 0:02:41.2]}
5... Nf6 {[%clk 0:02:58.4]} 6. Nc3 {[%clk 0:02:41.3]} 6... g6 {[%clk 0:02:57.1]}
7. e5 {[%clk 0:02:41.5]} 7... dxe5 {[%clk 0:02:47.6]} 8. Qxd8+ {[%clk
0:02:42.4]} 8... Nxd8 {[%clk 0:02:47.5]} 9. Nxe5 {[%clk 0:02:41.6]} 9... Nd7
{[%clk 0:02:41.9]} 10. Bf4 {[%clk 0:02:22.3]} 10... Ne6 {[%clk 0:02:27.1]} 11.
Bg3 {[%clk 0:02:19.7]} 11... Bg7 {[%clk 0:02:22.2]} 12. Bb5 {[%clk 0:02:18.5]}
12... a6 {[%clk 0:02:19.9]} 13. Bxd7+ {[%clk 0:02:17.5]} 13... Bxd7 {[%clk
0:02:20.8]} 14. Nxd7 {[%clk 0:02:18.4]} 14... Kxd7 {[%clk 0:02:21.7]} 15. O-O-O+
{[%clk 0:02:18.7]} 15... Kc6 {[%clk 0:02:19.7]} 16. Nd5 {[%clk 0:02:17.5]} 16...
Rhe8 {[%clk 0:02:12.4]} 17. Rhe1 {[%clk 0:02:17.5]} 17... Rad8 {[%clk
0:02:09.1]} 18. Nxe7+ {[%clk 0:02:16.6]} 18... Kc5 {[%clk 0:01:47.8]} 19. f3
{[%clk 0:01:59.5]} 19... Rxd1+ {[%clk 0:01:32.8]} 20. Rxd1 {[%clk 0:02:00.4]}
20... Bd4 {[%clk 0:01:27.3]} 21. c3 {[%clk 0:01:13.1]} 21... Rxe7 {[%clk
0:01:20.6]} 22. cxd4+ {[%clk 0:01:14]} 22... Kd5 {[%clk 0:01:20.8]} 23. Be5
{[%clk 0:01:09.4]} 23... Re8 {[%clk 0:01:18.7]} 24. Rd3 {[%clk 0:01:04.1]} 24...
Rc8+ {[%clk 0:01:12.8]} 25. Kd2 {[%clk 0:01:04]} 25... Rc4 {[%clk 0:01:05.4]}
26. b3 {[%clk 0:01:00.9]} 26... Rc6 {[%clk 0:01:03.3]} 27. g4 {[%clk 0:00:58]}
27... g5 {[%clk 0:00:53.4]} 28. Bg3 {[%clk 0:00:31.6]} 28... f6 {[%clk
0:00:49.6]} 29. Bf2 {[%clk 0:00:26.5]} 29... Nf4 {[%clk 0:00:47.1]} 30. Re3
{[%clk 0:00:26.7]} 30... Re6 {[%clk 0:00:43.1]} 31. Rxe6 {[%clk 0:00:03.5]}
31... Nxe6 {[%clk 0:00:44]} 32. Kc3 {[%clk 0:00:03.5]} 32... Nf4 {[%clk
0:00:41.7]} 33. Be3 {[%clk 0:00:02.9]} 33... Ng2 {[%clk 0:00:32.3]} 34. Kd2
{[%clk 0:00:03.2]} 34... b6 {[%clk 0:00:19.8]} 35. Ke2 {[%clk 0:00:02.5]} 35...
Nh4 {[%clk 0:00:15.6]} 36. a3 {[%clk 0:00:01.4]} 36... h6 {[%clk 0:00:15.5]} 37.
Bf2 {[%clk 0:00:01.2]} 37... Ng6 {[%clk 0:00:15.1]} 38. Be3 {[%clk 0:00:01.9]}
38... Ne7 {[%clk 0:00:15.1]} 39. a4 {[%clk 0:00:02.2]} 39... Nc6 {[%clk
0:00:15]} 40. Kd3 {[%clk 0:00:02.8]} 40... Na5 {[%clk 0:00:14.9]} 41. Kc3 {[%clk
0:00:03]} 41... Nc6 {[%clk 0:00:15.3]} 42. Bf2 {[%clk 0:00:03.7]} 42... Ne7
{[%clk 0:00:13.3]} 43. Bg3 {[%clk 0:00:04]} 43... Nc6 {[%clk 0:00:12.2]} 44. Bf2
{[%clk 0:00:01.8]} 44... Nd8 {[%clk 0:00:11.5]} 45. Kd3 {[%clk 0:00:02.4]} 45...
Ne6 {[%clk 0:00:12]} 46. Be3 {[%clk 0:00:03.1]} 46... b5 {[%clk 0:00:11.5]} 47.
axb5 {[%clk 0:00:02.4]} 47... axb5 {[%clk 0:00:12.4]} 48. b4 {[%clk 0:00:01.8]}
48... Nd8 {[%clk 0:00:10.4]} 49. h4 {[%clk 0:00:02.3]} 49... Nc6 {[%clk
0:00:10.9]} 50. Kc3 {[%clk 0:00:01.9]} 50... gxh4 {[%clk 0:00:05]} 51. Bxh6
{[%clk 0:00:02.8]} 51... Nxd4 {[%clk 0:00:05.4]} 52. f4 {[%clk 0:00:01.6]} 52...
h3 {[%clk 0:00:04.7]} 53. g5 {[%clk 0:00:01]} 53... fxg5 {[%clk 0:00:03.9]} 54.
fxg5 {[%clk 0:00:01.9]} 54... h2 {[%clk 0:00:04.4]} 55. g6 {[%clk 0:00:02.3]}
55... h1=Q {[%clk 0:00:05]} 56. g7 {[%clk 0:00:03.2]} 56... Qf3+ {[%clk
0:00:03.2]} 57. Kb2 {[%clk 0:00:02]} 57... Qb3+ {[%clk 0:00:03.3]} 58. Kc1
{[%clk 0:00:02.5]} 58... Qc2# {[%clk 0:00:03.5]} 0-1

[Event "Late-Titled-Tuesday-Blitz-July-09-2024"]
[Site "Chess.com"]
[Date "2024.07.09"]
[Round "4"]
[White "Individoom"]
[Black "SantoBlue"]
[Result "0-1"]
[WhiteElo "2757"]
[BlackElo "2994"]
[TimeControl "180+1"]
[EndTime "14:40:10 PDT"]
[Termination "SantoBlue won on time"]

1. d4 {[%clk 0:02:59.8]} 1... d6 {[%clk 0:02:57.8]} 2. Nf3 {[%clk 0:02:57.5]}
2... c5 {[%clk 0:02:56.7]} 3. dxc5 {[%clk 0:02:56.1]} 3... Qa5+ {[%clk
0:02:56.1]} 4. c3 {[%clk 0:02:54.6]} 4... Qxc5 {[%clk 0:02:55.9]} 5. g3 {[%clk
0:02:55]} 5... Nf6 {[%clk 0:02:55.5]} 6. Bg2 {[%clk 0:02:54.8]} 6... g6 {[%clk
0:02:56.1]} 7. O-O {[%clk 0:02:53.9]} 7... Bg7 {[%clk 0:02:56.3]} 8. Re1 {[%clk
0:02:42]} 8... O-O {[%clk 0:02:55.6]} 9. e4 {[%clk 0:02:42]} 9... Nc6 {[%clk
0:02:56.3]} 10. Nbd2 {[%clk 0:02:39.9]} 10... Qh5 {[%clk 0:02:53.8]} 11. Nd4
{[%clk 0:02:26.8]} 11... Qxd1 {[%clk 0:02:35]} 12. Rxd1 {[%clk 0:02:26.7]} 12...
Ne5 {[%clk 0:02:35.2]} 13. Nf1 {[%clk 0:02:13.9]} 13... Bd7 {[%clk 0:02:21.2]}
14. Ne3 {[%clk 0:02:04.9]} 14... Rab8 {[%clk 0:02:15.8]} 15. b3 {[%clk
0:01:54.2]} 15... b5 {[%clk 0:02:13.2]} 16. Bb2 {[%clk 0:01:52.8]} 16... Rfc8
{[%clk 0:02:11.4]} 17. h3 {[%clk 0:01:51.7]} 17... a5 {[%clk 0:02:09.9]} 18. Nd5
{[%clk 0:01:44.2]} 18... Kf8 {[%clk 0:01:53.6]} 19. Rac1 {[%clk 0:01:36.3]}
19... a4 {[%clk 0:01:49.1]} 20. Ba3 {[%clk 0:01:29.3]} 20... axb3 {[%clk
0:01:40.3]} 21. axb3 {[%clk 0:01:29]} 21... Nc6 {[%clk 0:01:32.2]} 22. Nxc6
{[%clk 0:01:27]} 22... Bxc6 {[%clk 0:01:29.8]} 23. Bb4 {[%clk 0:00:53.9]} 23...
Bxd5 {[%clk 0:01:23.4]} 24. exd5 {[%clk 0:00:53.6]} 24... Nd7 {[%clk 0:01:23.9]}
25. h4 {[%clk 0:00:44.8]} 25... Rc7 {[%clk 0:01:23.1]} 26. Bh3 {[%clk
0:00:42.9]} 26... h5 {[%clk 0:01:17.8]} 27. Ra1 {[%clk 0:00:28.5]} 27... Nb6
{[%clk 0:01:14]} 28. Rd3 {[%clk 0:00:26.2]} 28... Bf6 {[%clk 0:01:11.5]} 29. Kg2
{[%clk 0:00:25.4]} 29... Kg7 {[%clk 0:01:11.6]} 30. Ra6 {[%clk 0:00:24]} 30...
Nd7 {[%clk 0:01:10.8]} 31. Rc6 {[%clk 0:00:23.6]} 31... Rbb7 {[%clk 0:01:07.8]}
32. f4 {[%clk 0:00:22.1]} 32... Nb8 {[%clk 0:00:52.8]} 33. Rxc7 {[%clk
0:00:21.3]} 33... Rxc7 {[%clk 0:00:53.7]} 34. Kf2 {[%clk 0:00:20.1]} 34... Na6
{[%clk 0:00:54]} 35. Bf1 {[%clk 0:00:18.1]} 35... Nxb4 {[%clk 0:00:50.3]} 36.
cxb4 {[%clk 0:00:18.3]} 36... Rc2+ {[%clk 0:00:50.2]} 37. Kf3 {[%clk 0:00:18.3]}
37... Rb2 {[%clk 0:00:50.5]} 38. Be2 {[%clk 0:00:16.8]} 38... Rb1 {[%clk
0:00:46.8]} 39. Re3 {[%clk 0:00:16.9]} 39... Bd4 {[%clk 0:00:47.4]} 40. Rd3
{[%clk 0:00:17]} 40... Bb6 {[%clk 0:00:47.4]} 41. Kg2 {[%clk 0:00:15.2]} 41...
Rb2 {[%clk 0:00:46.4]} 42. Kf3 {[%clk 0:00:15.3]} 42... Kf6 {[%clk 0:00:47.1]}
43. Rc3 {[%clk 0:00:15.4]} 43... Bd4 {[%clk 0:00:42.3]} 44. Rd3 {[%clk
0:00:15.5]} 44... Ba7 {[%clk 0:00:42.9]} 45. Rc3 {[%clk 0:00:15.9]} 45... Bb6
{[%clk 0:00:37.5]} 46. Rd3 {[%clk 0:00:15.8]} 46... Kg7 {[%clk 0:00:35.7]} 47.
Rc3 {[%clk 0:00:16]} 47... Bg1 {[%clk 0:00:33.9]} 48. Rd3 {[%clk 0:00:16]} 48...
Kf8 {[%clk 0:00:34.1]} 49. Rc3 {[%clk 0:00:16.2]} 49... Kg8 {[%clk 0:00:32.3]}
50. Rd3 {[%clk 0:00:16.4]} 50... Bh2 {[%clk 0:00:27.3]} 51. Rc3 {[%clk
0:00:16.1]} 51... Bxg3 {[%clk 0:00:27.9]} 52. Bxb5 {[%clk 0:00:13]} 52... Bxh4
{[%clk 0:00:27.3]} 53. Bc6 {[%clk 0:00:13.2]} 53... Be1 {[%clk 0:00:27.6]} 54.
Re3 {[%clk 0:00:09.6]} 54... Rf2+ {[%clk 0:00:24.4]} 55. Kg3 {[%clk 0:00:06.5]}
55... h4+ {[%clk 0:00:20.9]} 56. Kh3 {[%clk 0:00:05.9]} 56... Rxf4 {[%clk
0:00:21.5]} 57. Rxe1 {[%clk 0:00:05.9]} 57... Kf8 {[%clk 0:00:17.5]} 58. b5
{[%clk 0:00:05.5]} 58... Rb4 {[%clk 0:00:18.2]} 59. Rg1 {[%clk 0:00:05.3]} 59...
Kg7 {[%clk 0:00:17.4]} 60. Rg4 {[%clk 0:00:05.5]} 60... Rxb3+ {[%clk 0:00:17.8]}
61. Kxh4 {[%clk 0:00:06]} 61... f5 {[%clk 0:00:16.2]} 62. Ra4 {[%clk 0:00:05.8]}
62... Kh6 {[%clk 0:00:13.7]} 0-1

[Event "Late-Titled-Tuesday-Blitz-July-09-2024"]
[Site "Chess.com"]
[Date "2024.07.09"]
[Round "4"]
[White "hakanazeri2"]
[Black "GilbertoHernandezAmura"]
[Result "1-0"]
[WhiteElo "2684"]
[BlackElo "2512"]
[TimeControl "180+1"]
[EndTime "14:40:12 PDT"]
[Termination "hakanazeri2 won by checkmate"]

1. e4 {[%clk 0:02:55.2]} 1... e5 {[%clk 0:03:00.1]} 2. Nf3 {[%clk 0:02:52.3]}
2... Nc6 {[%clk 0:03:00.6]} 3. Bb5 {[%clk 0:02:52.3]} 3... a6 {[%clk 0:02:56.5]}
4. Ba4 {[%clk 0:02:52]} 4... d6 {[%clk 0:02:54.7]} 5. c3 {[%clk 0:02:49.3]} 5...
Nf6 {[%clk 0:02:53.9]} 6. d4 {[%clk 0:02:42.5]} 6... Bd7 {[%clk 0:02:38.1]} 7.
O-O {[%clk 0:02:32]} 7... g6 {[%clk 0:02:22.2]} 8. dxe5 {[%clk 0:01:59.9]} 8...
Nxe5 {[%clk 0:02:13.2]} 9. Nxe5 {[%clk 0:01:59.4]} 9... dxe5 {[%clk 0:02:13.7]}
10. Bg5 {[%clk 0:01:54.5]} 10... Bxa4 {[%clk 0:01:52.9]} 11. Qxd8+ {[%clk
0:01:46.8]} 11... Rxd8 {[%clk 0:01:43.9]} 12. Bxf6 {[%clk 0:01:47.7]} 12... Rg8
{[%clk 0:01:40.1]} 13. Bxd8 {[%clk 0:01:47]} 13... Kxd8 {[%clk 0:01:41]} 14. Nd2
{[%clk 0:01:44.2]} 14... Bc6 {[%clk 0:01:29.5]} 15. Rfd1 {[%clk 0:01:41.8]}
15... Kc8 {[%clk 0:01:26.5]} 16. f3 {[%clk 0:01:41.1]} 16... f5 {[%clk
0:01:24.1]} 17. b4 {[%clk 0:01:37.6]} 17... Bh6 {[%clk 0:01:21.4]} 18. a4 {[%clk
0:01:30.2]} 18... b5 {[%clk 0:01:16.6]} 19. axb5 {[%clk 0:01:24.4]} 19... axb5
{[%clk 0:01:17.5]} 20. Kf2 {[%clk 0:01:24.5]} 20... Rf8 {[%clk 0:01:08.9]} 21.
Ke2 {[%clk 0:01:21.2]} 21... Bxd2 {[%clk 0:01:03.6]} 22. Rxd2 {[%clk 0:01:22.1]}
22... fxe4 {[%clk 0:01:04.3]} 23. fxe4 {[%clk 0:01:23]} 23... Bxe4 {[%clk
0:01:04.7]} 24. Ke3 {[%clk 0:01:19.7]} 24... Bc6 {[%clk 0:00:43]} 25. Rad1
{[%clk 0:01:18.6]} 25... Kb7 {[%clk 0:00:41.2]} 26. Rf2 {[%clk 0:01:17.4]} 26...
Ra8 {[%clk 0:00:37.2]} 27. g3 {[%clk 0:01:07.3]} 27... Ra3 {[%clk 0:00:36.9]}
28. Rc1 {[%clk 0:01:06.6]} 28... Bd5 {[%clk 0:00:34.4]} 29. Rf8 {[%clk
0:00:58.8]} 29... Ra2 {[%clk 0:00:34]} 30. Rf2 {[%clk 0:00:58.1]} 30... Ra3
{[%clk 0:00:33.5]} 31. h4 {[%clk 0:00:51.5]} 31... Kc6 {[%clk 0:00:30.4]} 32. g4
{[%clk 0:00:47.2]} 32... Kd6 {[%clk 0:00:23.2]} 33. g5 {[%clk 0:00:43.7]} 33...
c6 {[%clk 0:00:21.5]} 34. h5 {[%clk 0:00:32.4]} 34... gxh5 {[%clk 0:00:18.8]}
35. Rf6+ {[%clk 0:00:32.3]} 35... Ke7 {[%clk 0:00:18.5]} 36. Rh6 {[%clk
0:00:09.9]} 36... Kf7 {[%clk 0:00:18.7]} 37. Rxh5 {[%clk 0:00:05.5]} 37... Kg6
{[%clk 0:00:19]} 38. Rh6+ {[%clk 0:00:06.1]} 38... Kxg5 {[%clk 0:00:19.2]} 39.
Rxh7 {[%clk 0:00:06.8]} 39... Ra2 {[%clk 0:00:18.3]} 40. Rg1+ {[%clk 0:00:06.3]}
40... Kf6 {[%clk 0:00:18.6]} 41. Rh6+ {[%clk 0:00:06.2]} 41... Kf7 {[%clk
0:00:18.6]} 42. Rh7+ {[%clk 0:00:03.8]} 42... Kf6 {[%clk 0:00:18.7]} 43. Rh6+
{[%clk 0:00:04.4]} 43... Kf7 {[%clk 0:00:18.1]} 44. Rg5 {[%clk 0:00:04.9]} 44...
e4 {[%clk 0:00:13.2]} 45. Rf5+ {[%clk 0:00:03.6]} 45... Ke7 {[%clk 0:00:13.3]}
46. Re5+ {[%clk 0:00:03.5]} 46... Kd7 {[%clk 0:00:13.6]} 47. Rg5 {[%clk
0:00:03]} 47... Kc7 {[%clk 0:00:11.7]} 48. Rg7+ {[%clk 0:00:02.8]} 48... Kb6
{[%clk 0:00:11.7]} 49. Rhh7 {[%clk 0:00:03.4]} 49... Ra8 {[%clk 0:00:10.4]} 50.
Rb7+ {[%clk 0:00:01.4]} 50... Ka6 {[%clk 0:00:10.6]} 51. Kd4 {[%clk 0:00:01.8]}
51... e3 {[%clk 0:00:10.4]} 52. Kxe3 {[%clk 0:00:01.1]} 52... Re8+ {[%clk
0:00:09.9]} 53. Kd4 {[%clk 0:00:01.2]} 53... Ra8 {[%clk 0:00:09.5]} 54. Rbc7
{[%clk 0:00:01.3]} 54... Kb6 {[%clk 0:00:09.5]} 55. Rb7+ {[%clk 0:00:01.9]}
55... Ka6 {[%clk 0:00:09.5]} 56. Rbd7 {[%clk 0:00:02.8]} 56... Rb8 {[%clk
0:00:09]} 57. Kc5 {[%clk 0:00:02.9]} 57... Ra8 {[%clk 0:00:08.9]} 58. Rc7 {[%clk
0:00:02.8]} 58... Bf3 {[%clk 0:00:08.8]} 59. Rhg7 {[%clk 0:00:03.5]} 59... Bd5
{[%clk 0:00:09]} 60. Rg1 {[%clk 0:00:03.8]} 60... Be4 {[%clk 0:00:09.5]} 61.
Ra1# {[%clk 0:00:04.3]} 1-0

[Event "Late-Titled-Tuesday-Blitz-July-09-2024"]
[Site "Chess.com"]
[Date "2024.07.09"]
[Round "4"]
[White "Dexter_Dyke"]
[Black "le-castor-faineant"]
[Result "1/2-1/2"]
[WhiteElo "2493"]
[BlackElo "2348"]
[TimeControl "180+1"]
[EndTime "14:40:17 PDT"]
[Termination "Game drawn by 50-move rule"]

1. e4 {[%clk 0:03:00.1]} 1... e5 {[%clk 0:03:00.2]} 2. f4 {[%clk 0:03:00.3]}
2... d5 {[%clk 0:02:59.4]} 3. exd5 {[%clk 0:03:00]} 3... exf4 {[%clk 0:03:00.3]}
4. Nf3 {[%clk 0:03:00.1]} 4... Nf6 {[%clk 0:03:00.3]} 5. c4 {[%clk 0:03:00.5]}
5... c6 {[%clk 0:02:59.5]} 6. d4 {[%clk 0:03:00.9]} 6... cxd5 {[%clk 0:02:59.7]}
7. Bxf4 {[%clk 0:03:00.2]} 7... Bb4+ {[%clk 0:02:59.3]} 8. Nc3 {[%clk
0:03:00.5]} 8... O-O {[%clk 0:02:59.2]} 9. Be2 {[%clk 0:03:01.1]} 9... dxc4
{[%clk 0:02:58.9]} 10. O-O {[%clk 0:03:01.7]} 10... Nc6 {[%clk 0:02:55.1]} 11.
Bg5 {[%clk 0:02:58.5]} 11... h6 {[%clk 0:02:50.8]} 12. Bxf6 {[%clk 0:02:52.5]}
12... Qxf6 {[%clk 0:02:50.2]} 13. Ne5 {[%clk 0:02:53]} 13... Qd6 {[%clk
0:02:47]} 14. Nb5 {[%clk 0:02:46.9]} 14... Qd8 {[%clk 0:02:32.2]} 15. Bxc4
{[%clk 0:02:44.4]} 15... Nxe5 {[%clk 0:02:30.7]} 16. dxe5 {[%clk 0:02:44.7]}
16... Bd7 {[%clk 0:02:23.6]} 17. Nd6 {[%clk 0:02:39.5]} 17... Bxd6 {[%clk
0:01:37]} 18. exd6 {[%clk 0:02:38.7]} 18... Rc8 {[%clk 0:01:34.7]} 19. Qb3
{[%clk 0:02:36.1]} 19... Qb6+ {[%clk 0:01:20.7]} 20. Qxb6 {[%clk 0:02:35.9]}
20... axb6 {[%clk 0:01:21.6]} 21. Bd5 {[%clk 0:02:29.4]} 21... Bc6 {[%clk
0:01:18.1]} 22. Rad1 {[%clk 0:02:28.6]} 22... Bxd5 {[%clk 0:01:16.4]} 23. Rxd5
{[%clk 0:02:28.6]} 23... Rfd8 {[%clk 0:01:13.6]} 24. Rfd1 {[%clk 0:02:18.2]}
24... Rc2 {[%clk 0:01:10.6]} 25. Rb5 {[%clk 0:02:17.8]} 25... Rc6 {[%clk
0:01:10.1]} 26. d7 {[%clk 0:02:18]} 26... Rc7 {[%clk 0:01:08.2]} 27. Rxb6 {[%clk
0:02:14.6]} 27... Rdxd7 {[%clk 0:01:07.4]} 28. Rxd7 {[%clk 0:02:14.1]} 28...
Rxd7 {[%clk 0:01:08.3]} 29. a4 {[%clk 0:02:11.3]} 29... Kf8 {[%clk 0:01:06.7]}
30. b4 {[%clk 0:02:10.6]} 30... Ke7 {[%clk 0:01:07.1]} 31. a5 {[%clk 0:02:09.8]}
31... Rc7 {[%clk 0:01:05.7]} 32. b5 {[%clk 0:02:08]} 32... Kd7 {[%clk
0:01:04.4]} 33. a6 {[%clk 0:02:07.4]} 33... bxa6 {[%clk 0:01:03.9]} 34. bxa6
{[%clk 0:02:07.8]} 34... Rc1+ {[%clk 0:01:03.9]} 35. Kf2 {[%clk 0:02:07.9]}
35... Ra1 {[%clk 0:01:04.1]} 36. Rb7+ {[%clk 0:02:05.6]} 36... Ke6 {[%clk
0:01:04.2]} 37. a7 {[%clk 0:02:05.6]} 37... Ra3 {[%clk 0:01:02.1]} 38. Ke2
{[%clk 0:02:05]} 38... g5 {[%clk 0:00:59.8]} 39. g4 {[%clk 0:01:58.4]} 39... f5
{[%clk 0:00:47.6]} 40. Rb6+ {[%clk 0:01:48.9]} 40... Kf7 {[%clk 0:00:44.6]} 41.
gxf5 {[%clk 0:01:49]} 41... Rxa7 {[%clk 0:00:43.8]} 42. Rxh6 {[%clk 0:01:48.9]}
42... Ra5 {[%clk 0:00:42.5]} 43. f6 {[%clk 0:01:43.4]} 43... Rf5 {[%clk
0:00:42.2]} 44. Ke3 {[%clk 0:01:37.4]} 44... Rxf6 {[%clk 0:00:42]} 45. Rh7+
{[%clk 0:01:34.2]} 45... Kg6 {[%clk 0:00:41.8]} 46. Rh8 {[%clk 0:01:34.8]} 46...
Rf7 {[%clk 0:00:40.1]} 47. Rg8+ {[%clk 0:01:28.5]} 47... Kh5 {[%clk 0:00:39.3]}
48. h3 {[%clk 0:01:14.1]} 48... Kh4 {[%clk 0:00:38.5]} 49. Rh8+ {[%clk
0:01:13.9]} 49... Kg3 {[%clk 0:00:38.7]} 50. Ke4 {[%clk 0:01:14.5]} 50... Rf4+
{[%clk 0:00:34.6]} 51. Ke5 {[%clk 0:01:13.5]} 51... Rh4 {[%clk 0:00:31.3]} 52.
Rg8 {[%clk 0:01:13.6]} 52... Kxh3 {[%clk 0:00:28.4]} 53. Rxg5 {[%clk 0:01:13.4]}
53... Rg4 {[%clk 0:00:28.5]} 54. Rh5+ {[%clk 0:01:13.1]} 54... Rh4 {[%clk
0:00:28.7]} 55. Rf5 {[%clk 0:01:12.9]} 55... Rg4 {[%clk 0:00:28.7]} 56. Rf8
{[%clk 0:01:13.1]} 56... Kg2 {[%clk 0:00:27.7]} 57. Ra8 {[%clk 0:01:08.7]} 57...
Rb4 {[%clk 0:00:27.4]} 58. Rg8+ {[%clk 0:01:07.7]} 58... Kf2 {[%clk 0:00:27.4]}
59. Rf8+ {[%clk 0:01:08.3]} 59... Kg2 {[%clk 0:00:27.7]} 60. Rc8 {[%clk
0:01:07.7]} 60... Kf2 {[%clk 0:00:27.9]} 61. Kd5 {[%clk 0:01:07.9]} 61... Kg2
{[%clk 0:00:27.9]} 62. Rc2+ {[%clk 0:01:08]} 62... Kf3 {[%clk 0:00:27.6]} 63.
Kc5 {[%clk 0:01:08.9]} 63... Ra4 {[%clk 0:00:27.7]} 64. Kb5 {[%clk 0:01:09.1]}
64... Rh4 {[%clk 0:00:27.6]} 65. Rc3+ {[%clk 0:01:09.5]} 65... Ke2 {[%clk
0:00:27.9]} 66. Rc5 {[%clk 0:01:09.1]} 66... Kf3 {[%clk 0:00:26.8]} 67. Rf5+
{[%clk 0:01:08.6]} 67... Ke2 {[%clk 0:00:26.8]} 68. Rf8 {[%clk 0:01:09.5]} 68...
Ke3 {[%clk 0:00:25.4]} 69. Kc5 {[%clk 0:01:09.2]} 69... Ke2 {[%clk 0:00:25.7]}
70. Kd5 {[%clk 0:01:09]} 70... Ke3 {[%clk 0:00:25.8]} 71. Re8+ {[%clk
0:01:08.2]} 71... Kd2 {[%clk 0:00:25.9]} 72. Rg8 {[%clk 0:01:09.1]} 72... Ke3
{[%clk 0:00:25.4]} 73. Rg3+ {[%clk 0:01:09.3]} 73... Kf2 {[%clk 0:00:25.8]} 74.
Ra3 {[%clk 0:01:10.2]} 74... Ke2 {[%clk 0:00:26]} 75. Ke5 {[%clk 0:01:10.4]}
75... Kd2 {[%clk 0:00:26.2]} 76. Kf5 {[%clk 0:01:10.9]} 76... Kc2 {[%clk
0:00:26.4]} 77. Kg5 {[%clk 0:01:11.1]} 77... Rb4 {[%clk 0:00:26]} 78. Rf3 {[%clk
0:01:10.8]} 78... Kd2 {[%clk 0:00:26.4]} 79. Kf5 {[%clk 0:01:10.2]} 79... Ke2
{[%clk 0:00:26.5]} 80. Rh3 {[%clk 0:01:07.2]} 80... Kf2 {[%clk 0:00:26.3]} 81.
Rh2+ {[%clk 0:01:07]} 81... Kg3 {[%clk 0:00:26.2]} 82. Ra2 {[%clk 0:01:07.9]}
82... Kf3 {[%clk 0:00:25.7]} 83. Ke5 {[%clk 0:01:08.3]} 83... Kg3 {[%clk
0:00:25.8]} 84. Kd5 {[%clk 0:01:09.2]} 84... Kf3 {[%clk 0:00:25.1]} 85. Kc5
{[%clk 0:01:08.8]} 85... Rh4 {[%clk 0:00:25.4]} 86. Ra3+ {[%clk 0:01:08.3]}
86... Ke2 {[%clk 0:00:25.6]} 87. Ra2+ {[%clk 0:01:08.5]} 87... Kf3 {[%clk
0:00:25.5]} 88. Ra8 {[%clk 0:01:09.4]} 88... Ke2 {[%clk 0:00:25.1]} 89. Kd5
{[%clk 0:01:09.3]} 89... Kf2 {[%clk 0:00:24.9]} 90. Ke5 {[%clk 0:01:09.8]} 90...
Ke2 {[%clk 0:00:25.1]} 91. Kf5 {[%clk 0:01:10.2]} 91... Kd2 {[%clk 0:00:24.9]}
92. Kg5 {[%clk 0:01:10.7]} 92... Rb4 {[%clk 0:00:25.3]} 93. Rd8+ {[%clk
0:01:10.9]} 93... Ke2 {[%clk 0:00:25.7]} 94. Re8+ {[%clk 0:01:11.4]} 94... Kf2
{[%clk 0:00:26.2]} 95. Rf8+ {[%clk 0:01:11.9]} 95... Ke2 {[%clk 0:00:26.7]} 96.
Rc8 {[%clk 0:01:11.9]} 96... Kd2 {[%clk 0:00:26.7]} 97. Kf5 {[%clk 0:01:11.9]}
97... Ke2 {[%clk 0:00:27]} 98. Ke5 {[%clk 0:01:11.2]} 98... Kd2 {[%clk
0:00:27.1]} 99. Rh8 {[%clk 0:01:11.8]} 99... Ke2 {[%clk 0:00:27.3]} 100. Rh2+
{[%clk 0:01:12.3]} 100... Kf3 {[%clk 0:00:27.2]} 101. Ra2 {[%clk 0:01:13.2]}
101... Ke3 {[%clk 0:00:27.3]} 102. Kd5 {[%clk 0:01:13.5]} 102... Kf3 {[%clk
0:00:27.3]} 103. Ra3+ {[%clk 0:01:13.5]} 1/2-1/2